bitfinex/quotes_BTCUSD_20220120
["timestamp","ask_amount","ask_price","bid_price","bid_amount"]
[1642679039172,0.42107983,42131.0,42128.0,0.15]
[1642679039972,0.42107983,42131.0,42128.0,0.05]
[1642679040171,0.42107983,42131.0,42127.0,0.51031646]
[1642679040172,0.42,42131.0,42127.0,0.51031646]
[1642679040774,0.34491636,42131.0,42127.0,0.51031646]
[1642679041474,0.34599619,42131.0,42127.0,0.51031646]
[1642679041873,0.34599619,42131.0,42127.0,0.56031646]
[1642679042476,0.34491636,42131.0,42127.0,1.16078962]
[1642679042677,0.34599619,42131.0,42127.0,1.16078962]
[1642679043508,0.34599619,42131.0,42127.0,0.259337]
[1642679043708,0.34491636,42131.0,42127.0,0.259337]
[1642679043907,0.34599619,42131.0,42127.0,0.75981016]
[1642679044108,0.34599619,42131.0,42127.0,1.15540705]
[1642679044312,0.34599619,42131.0,42127.0,0.259337]
[1642679044910,0.34491636,42131.0,42127.0,0.259337]
[1642679045111,0.34599619,42131.0,42127.0,0.259337]
[1642679045410,0.34599619,42131.0,42127.0,0.159337]
[1642679045614,0.34599619,42131.0,42127.0,0.05]
[1642679046110,0.34491636,42131.0,42127.0,0.05]
[1642679046310,0.34599619,42131.0,42127.0,0.05]
[1642679047264,0.34599619,42131.0,42128.0,0.00123732]
[1642679047465,0.34599619,42131.0,42129.0,0.00594669]
[1642679047664,0.34599619,42131.0,42130.0,0.383625]
[1642679048170,0.34330483,42131.0,42130.0,0.483625]
[1642679048564,0.342225,42131.0,42130.0,0.483625]
[1642679049265,0.363225,42131.0,42130.0,0.483625]
[1642679050410,0.342225,42131.0,42130.0,0.39629399]
[1642679050611,0.342225,42131.0,42130.0,0.29629399]
[1642679050822,0.342225,42131.0,42130.0,0.39629399]
[1642679051213,0.342225,42131.0,42130.0,0.77991899]
[1642679051613,0.342225,42131.0,42130.0,0.82781899]
[1642679053016,0.342225,42131.0,42130.0,0.44419399]
[1642679053420,0.342225,42131.0,42130.0,0.44391654]
[1642679057465,4.851842,42131.0,42130.0,0.44391654]
[1642679057916,4.851842,42131.0,42130.0,0.1479]
[1642679058115,4.851842,42131.0,42130.0,0.0479]
[1642679058723,0.00129766,42136.0,42131.0,1.233625]
[1642679058916,0.19359472,42141.0,42131.0,1.133625]
[1642679059116,6.876e-05,42132.0,42131.0,1.233625]
[1642679059716,6.876e-05,42132.0,42131.0,1.83609691]
[1642679060018,6.876e-05,42132.0,42131.0,1.53609691]
[1642679061419,0.00406876,42132.0,42131.0,1.53609691]
[1642679062262,0.00406876,42132.0,42131.0,1.08609691]
[1642679062761,6.876e-05,42132.0,42131.0,1.13609691]
[1642679063461,0.00406876,42132.0,42131.0,1.13609691]
[1642679065313,0.00606876,42132.0,42131.0,1.14709691]
[1642679065614,0.00606876,42132.0,42131.0,0.8027201]
[1642679065813,0.00206876,42132.0,42131.0,0.8027201]
[1642679066014,0.74098907,42135.0,42131.0,0.8027201]
[1642679066214,0.41848369,42135.0,42131.0,0.8027201]
[1642679066615,0.41848369,42135.0,42131.0,0.7917201]
[1642679066816,0.74182439,42135.0,42131.0,0.7429303]
[1642679067015,0.41848369,42135.0,42131.0,0.7429303]
[1642679067215,0.42148369,42135.0,42131.0,0.7529303]
[1642679067814,0.42148369,42135.0,42131.0,0.7517201]
[1642679068015,0.42148369,42135.0,42131.0,0.7529303]
[1642679068615,0.41848369,42135.0,42131.0,0.7429303]
[1642679069064,0.41848369,42135.0,42131.0,0.7417201]
[1642679069260,0.42148369,42135.0,42131.0,0.7529303]
[1642679070159,0.42148369,42135.0,42131.0,0.7517201]
[1642679070361,0.42148369,42135.0,42131.0,0.8122673]
[1642679070562,0.41848369,42135.0,42131.0,0.8022673]
[1642679071260,0.42248369,42135.0,42131.0,0.8132673]
[1642679071462,0.42248369,42135.0,42131.0,0.8120571]
[1642679071764,0.42248369,42135.0,42131.0,0.8132673]
[1642679072162,0.42248369,42135.0,42131.0,0.7539303]
[1642679072562,0.42248369,42135.0,42131.0,0.7527201]
[1642679072818,0.41848369,42135.0,42131.0,0.7429303]
[1642679073418,0.42148369,42135.0,42131.0,0.7529303]
[1642679074119,0.42148369,42135.0,42131.0,0.81226608]
[1642679074520,0.41848369,42135.0,42131.0,0.80226608]
[1642679074720,0.00123599,42133.0,42131.0,0.0012102]
[1642679074920,0.00123599,42133.0,42131.0,0.1]
[1642679075120,0.00123599,42133.0,42131.0,0.1012102]
[1642679075320,0.00823599,42133.0,42131.0,0.1142102]
[1642679076119,0.00823599,42133.0,42131.0,0.013]
[1642679077369,0.01423599,42133.0,42131.0,0.027]
[1642679077870,0.07956971,42132.0,42131.0,0.014]
[1642679078271,0.006,42133.0,42131.0,0.014]
[1642679079373,0.36376676,42134.0,42129.0,0.00121023]
[1642679079775,0.36376676,42134.0,42128.0,0.42342152]
[1642679079975,0.36376676,42134.0,42129.0,0.00121023]
[1642679081117,0.36376676,42134.0,42131.0,0.00254825]
[1642679081319,0.36876676,42134.0,42131.0,0.00254825]
[1642679082518,0.36376676,42134.0,42131.0,0.00254825]
[1642679083320,0.007,42134.0,42131.0,0.01454825]
[1642679084565,0.74670378,42135.0,42131.0,0.00254825]
[1642679085363,0.75270378,42135.0,42131.0,0.01654825]
[1642679085564,0.7485442,42135.0,42131.0,0.01654825]
[1642679085964,0.42448369,42135.0,42131.0,0.0152102]
[1642679086164,0.74974172,42135.0,42131.0,0.0152102]
[1642679086365,0.42448369,42135.0,42131.0,0.0152102]
[1642679086565,0.32254966,42134.0,42131.0,0.0152102]
[1642679086965,0.32254966,42134.0,42131.0,0.014]
[1642679087370,0.32954966,42134.0,42131.0,0.026]
[1642679087823,0.32954966,42134.0,42131.0,0.012]
[1642679088023,0.2008946,42132.0,42131.0,0.012]
[1642679088623,0.2008946,42132.0,42130.0,0.00121021]
[1642679089225,0.74523178,42135.0,42130.0,0.00121021]
[1642679089226,0.41848369,42135.0,42130.0,0.00121021]
[1642679089436,0.005,42132.0,42130.0,0.017]
[1642679090426,0.005,42132.0,42130.0,0.01693425]
[1642679090724,0.74283475,42135.0,42129.0,0.00121023]
[1642679091324,0.74783475,42135.0,42129.0,0.01821023]
[1642679091763,0.74783475,42135.0,42129.0,0.017]
[1642679091963,0.17654239,42133.0,42130.0,0.00121022]
[1642679092964,0.17625674,42133.0,42126.0,0.45030523]
[1642679093167,0.17625674,42133.0,42129.0,0.00121023]
[1642679093365,0.18225674,42133.0,42130.0,0.014]
[1642679094665,0.17625674,42133.0,42129.0,0.00121023]
[1642679095417,0.18125674,42133.0,42129.0,0.016]
[1642679095617,0.18125674,42133.0,42129.0,0.01721023]
[1642679096619,0.18125674,42133.0,42129.0,0.016]
[1642679096819,0.18125674,42133.0,42129.0,0.01721023]
[1642679097418,0.18725674,42133.0,42129.0,0.03321023]
[1642679098121,0.17625674,42133.0,42129.0,0.00121023]
[1642679098919,0.17625674,42133.0,42127.0,8.595e-05]
[1642679099170,0.17625674,42133.0,42129.0,0.00121023]
[1642679099370,0.18225674,42133.0,42129.0,0.01521023]
[1642679100172,0.18225674,42133.0,42129.0,0.014]
[1642679100375,0.38460418,42132.0,42129.0,0.01521023]
[1642679100579,0.45660272,42131.0,42129.0,0.00121023]
[1642679100772,1.16311876,42130.0,42129.0,0.00121023]
[1642679100971,1.16311876,42130.0,42127.0,8.595e-05]
[1642679100972,0.85,42129.0,42127.0,8.595e-05]
[1642679101174,1.43599246,42128.0,42127.0,8.595e-05]
[1642679101374,1.51537287,42128.0,42118.0,0.00024066]
[1642679101572,0.20147558,42123.0,42118.0,0.00024066]
[1642679101772,1.13174787,42128.0,42118.0,0.00024066]
[1642679101773,0.07938041,42127.0,42118.0,0.00024066]
[1642679101973,0.07938041,42127.0,42117.0,0.00025785]
[1642679101974,0.12728041,42127.0,42117.0,0.00025785]
[1642679102473,0.07938041,42126.0,42121.0,0.24892735]
[1642679102677,0.0479,42125.0,42121.0,0.24892735]
[1642679102926,0.37493022,42125.0,42122.0,0.0001719]
[1642679103425,0.0549,42125.0,42122.0,0.0131719]
[1642679103926,0.0549,42125.0,42123.0,0.00015471]
[1642679104726,0.0479,42125.0,42123.0,0.00015471]
[1642679105128,0.0479,42125.0,42122.0,0.00138224]
[1642679105528,0.008,42125.0,42123.0,0.01115471]
[1642679105929,0.308,42125.0,42124.0,0.00013752]
[1642679106766,0.3,42125.0,42124.0,0.00013752]
[1642679107171,0.63499139,42125.0,42123.0,0.00015471]
[1642679107371,0.309,42125.0,42124.0,0.011]
[1642679107573,0.009,42125.0,42124.0,0.011]
[1642679107770,0.009,42125.0,42124.0,0.01113752]
[1642679108376,0.00892223,42125.0,42124.0,0.26113752]
[1642679108571,0.00892223,42125.0,42124.0,0.35013752]
[1642679108772,0.39663059,42130.0,42124.0,0.30013752]
[1642679108971,0.39663059,42130.0,42124.0,0.40013752]
[1642679109173,0.07887172,42129.0,42125.0,0.00012033]
[1642679109572,0.03775749,42127.0,42125.0,0.00012033]
[1642679109974,0.36234997,42127.0,42125.0,0.00133062]
[1642679110174,0.32247591,42126.0,42125.0,0.00133062]
[1642679110418,0.32247591,42126.0,42125.0,0.00121029]
[1642679110922,0.32247591,42126.0,42121.0,0.29892735]
[1642679111118,0.32247591,42126.0,42123.0,0.00121032]
[1642679111521,0.32547591,42126.0,42123.0,0.00121032]
[1642679112221,0.32547591,42126.0,42122.0,0.0001719]
[1642679112422,0.32547591,42126.0,42122.0,0.00138223]
[1642679112622,0.32547591,42126.0,42122.0,0.06073408]
[1642679112623,0.003,42126.0,42122.0,0.06073408]
[1642679112821,0.003,42126.0,42123.0,0.00015471]
[1642679113821,0.03775749,42127.0,42123.0,0.00015471]
[1642679114262,0.03775749,42128.0,42123.0,0.00015471]
[1642679114466,0.38895037,42132.0,42123.0,0.00015471]
[1642679114664,0.03775749,42126.0,42123.0,0.00015471]
[1642679114863,0.03775749,42126.0,42123.0,0.00136503]
[1642679115064,20.03775749,42126.0,42123.0,0.00136503]
[1642679115264,0.33117322,42125.0,42124.0,0.00013752]
[1642679115864,20.04675749,42126.0,42124.0,0.00013752]
[1642679116664,20.03775749,42126.0,42124.0,0.00013752]
[1642679117065,20.03775749,42126.0,42123.0,0.00015471]
[1642679117264,20.03775749,42126.0,42123.0,0.00136503]
[1642679117466,20.04775749,42126.0,42124.0,0.01]
[1642679117664,20.04775749,42126.0,42124.0,0.01013752]
[1642679117917,20.04775749,42126.0,42125.0,0.00012033]
[1642679118728,20.03775749,42126.0,42125.0,0.00012033]
[1642679119120,20.03775749,42126.0,42124.0,0.00013752]
[1642679119518,20.04875749,42126.0,42125.0,0.009]
[1642679119719,20.011,42126.0,42125.0,0.009]
[1642679119917,20.04875749,42126.0,42125.0,0.00912033]
[1642679120117,20.08651498,42126.0,42125.0,0.00912033]
[1642679120720,20.07551498,42126.0,42125.0,0.00012033]
[1642679120919,20.45913998,42126.0,42125.0,0.00012033]
[1642679121122,20.460371,42126.0,42124.0,0.00013752]
[1642679121335,1.23436476,42125.0,42124.0,0.00013752]
[1642679121578,1.31330359,42125.0,42124.0,0.00013752]
[1642679121773,1.30858137,42125.0,42124.0,0.00013752]
[1642679121974,1.7969348,42125.0,42124.0,0.00013752]
[1642679122175,1.90324201,42125.0,42122.0,0.00121033]
[1642679122377,1.09576089,42124.0,42123.0,0.00015471]
[1642679122574,1.92144348,42124.0,42123.0,0.00015471]
[1642679122775,2.02774798,42124.0,42123.0,0.00015471]
[1642679122975,2.03960798,42124.0,42123.0,0.00015471]
[1642679123176,0.82568259,42124.0,42123.0,0.00015471]
[1642679123378,0.46316853,42124.0,42121.0,0.00121035]
[1642679123575,0.015356,42123.0,42121.0,0.00121035]
[1642679124174,0.015356,42123.0,42112.0,0.0003438]
[1642679124376,0.0206047,42124.0,42120.0,0.00121037]
[1642679124575,0.383341,42123.0,42120.0,0.00121037]
[1642679124779,0.66979245,42122.0,42121.0,0.00018909]
[1642679124978,0.68543245,42122.0,42121.0,0.00018909]
[1642679125425,0.77694743,42122.0,42121.0,0.00018909]
[1642679125823,0.77694743,42122.0,42119.0,0.00121038]
[1642679126027,0.383341,42121.0,42120.0,0.00020628]
[1642679126726,0.733341,42121.0,42120.0,0.00020628]
[1642679126924,0.733341,42121.0,42118.0,0.00119739]
[1642679127127,0.92988334,42120.0,42119.0,0.00022347]
[1642679127327,0.94552334,42120.0,42119.0,0.00022347]
[1642679128127,0.94552334,42120.0,42117.0,0.00119741]
[1642679128327,0.38399578,42119.0,42118.0,0.00024066]
[1642679128527,0.66618712,42119.0,42118.0,0.00024066]
[1642679129376,0.66618712,42119.0,42116.0,0.00119742]
[1642679129578,0.67277027,42119.0,42117.0,0.00025785]
[1642679129775,0.68508985,42118.0,42117.0,0.00025785]
[1642679129975,0.70072985,42118.0,42117.0,0.00025785]
[1642679130177,1.01182147,42118.0,42117.0,0.00025785]
[1642679130377,1.20458692,42118.0,42117.0,0.00025785]
[1642679130579,1.24234441,42118.0,42115.0,0.00121044]
[1642679130779,0.383341,42117.0,42116.0,0.00027504]
[1642679130976,0.69458658,42117.0,42116.0,0.00027504]
[1642679131576,1.16278999,42117.0,42116.0,0.00027504]
[1642679131782,1.121332,42115.0,42114.0,0.00121046]
[1642679131979,1.46815055,42115.0,42114.0,0.00121046]
[1642679132178,1.50304055,42115.0,42114.0,0.00121046]
[1642679132579,0.21781121,42109.0,42105.0,0.3396]
[1642679132831,0.50121348,42108.0,42105.0,0.14984267]
[1642679133030,0.50121348,42108.0,42106.0,0.00044694]
[1642679133031,0.02578348,42108.0,42106.0,0.00044694]
[1642679133426,0.02978348,42108.0,42106.0,0.00044694]
[1642679134028,0.00521348,42108.0,42106.0,0.00044694]
[1642679134432,0.00521348,42108.0,42102.0,0.0005157]
[1642679134630,0.00521348,42108.0,42103.0,0.383341]
[1642679134828,0.00121348,42108.0,42103.0,0.383341]
[1642679135030,0.00121348,42108.0,42104.0,0.00048132]
[1642679135228,0.00121348,42108.0,42105.0,0.383341]
[1642679135428,0.004,42108.0,42105.0,0.383341]
[1642679135930,0.03775749,42106.0,42105.0,0.383341]
[1642679136229,0.07551498,42106.0,42105.0,0.38380513]
[1642679136431,0.07551498,42106.0,42105.0,0.48380513]
[1642679136869,20.07551498,42106.0,42105.0,0.48380513]
[1642679137079,20.07551498,42106.0,42105.0,0.00046413]
[1642679137270,20.45885598,42106.0,42105.0,0.00046413]
[1642679137471,20.46385598,42106.0,42102.0,0.0005157]
[1642679137669,20.08051498,42106.0,42103.0,0.00121062]
[1642679138069,20.51775812,42106.0,42104.0,0.00048132]
[1642679138269,0.383341,42105.0,42104.0,0.00048132]
[1642679139070,0.383341,42105.0,42103.0,0.00121063]
[1642679139272,20.07551498,42106.0,42104.0,0.00048132]
[1642679139470,0.306,42105.0,42104.0,0.00048132]
[1642679140322,0.306,42105.0,42103.0,0.00121063]
[1642679140521,0.306,42105.0,42104.0,0.00048132]
[1642679140722,0.3,42105.0,42104.0,0.00048132]
[1642679141221,0.33775749,42105.0,42104.0,0.00048132]
[1642679141523,0.22620385,42103.0,42102.0,0.00121064]
[1642679141923,0.22620385,42103.0,42102.0,0.00172634]
[1642679142126,0.22620385,42103.0,42102.0,0.0005157]
[1642679143823,0.07551498,42105.0,42102.0,0.0005157]
[1642679145572,0.08051498,42105.0,42102.0,0.0005157]
[1642679145973,20.08051498,42105.0,42102.0,0.0005157]
[1642679146174,20.04275749,42105.0,42102.0,0.0005157]
[1642679146373,0.22024045,42103.0,42102.0,0.0005157]
[1642679146574,0.25799794,42103.0,42102.0,0.0005157]
[1642679147921,0.03775749,42103.0,42102.0,0.0005157]
[1642679149524,0.04175749,42103.0,42102.0,0.0005157]
[1642679150525,1.23641094,42103.0,42102.0,0.0005157]
[1642679150728,1.23641094,42103.0,42101.0,0.01]
[1642679150729,0.00071567,42102.0,42101.0,0.01]
[1642679150929,1.17768219,42102.0,42101.0,0.01]
[1642679151325,1.48662629,42102.0,42101.0,0.01]
[1642679151605,1.4881975,42102.0,42101.0,0.01]
[1642679151797,1.52595499,42102.0,42101.0,0.01]
[1642679152099,1.56371248,42102.0,42101.0,0.01]
[1642679152702,1.56271248,42102.0,42101.0,0.01]
[1642679152899,1.18574596,42102.0,42101.0,0.01]
[1642679153301,0.38574596,42102.0,42101.0,0.01]
[1642679153501,0.07980186,42102.0,42101.0,0.01]
[1642679154401,0.32980186,42102.0,42101.0,0.01]
[1642679154801,0.32680186,42102.0,42101.0,0.01]
[1642679155540,0.33180186,42102.0,42101.0,0.01]
[1642679155940,0.08180186,42102.0,42101.0,0.01]
[1642679156941,0.07680186,42102.0,42101.0,0.01]
[1642679157541,0.08180186,42102.0,42101.0,0.01]
[1642679159376,0.43180186,42102.0,42101.0,0.01]
[1642679159577,0.43580186,42102.0,42101.0,0.01]
[1642679159774,0.08580186,42102.0,42101.0,0.01]
[1642679159975,0.08080186,42102.0,42101.0,0.01]
[1642679160877,0.07680186,42102.0,42101.0,0.01]
[1642679161779,0.08180186,42102.0,42101.0,0.01]
[1642679162078,20.08180186,42102.0,42101.0,0.01]
[1642679163126,20.07680186,42102.0,42101.0,0.01]
[1642679163527,20.08180186,42102.0,42101.0,0.01]
[1642679164930,20.07680186,42102.0,42101.0,0.01]
[1642679165634,20.08080186,42102.0,42101.0,0.01]
[1642679166871,20.07680186,42102.0,42101.0,0.01]
[1642679167373,20.07680186,42102.0,42101.0,1.27522463]
[1642679167573,20.07680186,42102.0,42101.0,0.95190451]
[1642679167574,20.07551498,42102.0,42101.0,0.95190451]
[1642679168073,20.07551498,42102.0,42101.0,1.05190451]
[1642679168476,20.07551498,42102.0,42101.0,0.45143135]
[1642679168673,18.46002514,42102.0,42101.0,2.08663068]
[1642679168872,18.46002514,42102.0,42101.0,2.46664217]
[1642679169373,18.46002514,42102.0,42101.0,2.56454217]
[1642679169571,18.46002514,42102.0,42101.0,1.8590125]
[1642679169774,18.46002514,42102.0,42101.0,1.8090125]
[1642679170832,18.46002514,42102.0,42101.0,1.8590125]
[1642679171626,18.46002514,42102.0,42101.0,1.8730125]
[1642679172828,18.46002514,42102.0,42101.0,1.8090125]
[1642679173729,18.46002514,42102.0,42101.0,1.8730125]
[1642679174377,18.46002514,42102.0,42101.0,1.23158115]
[1642679174978,18.46002514,42102.0,42101.0,1.16968115]
[1642679175578,18.46002514,42102.0,42101.0,1.8881601]
[1642679175777,18.46002514,42102.0,42101.0,1.9381601]
[1642679176184,18.46002514,42102.0,42101.0,1.93863647]
[1642679176478,18.46002514,42102.0,42101.0,1.88863647]
[1642679176878,18.46002514,42102.0,42101.0,1.87563647]
[1642679177680,18.46002514,42102.0,42101.0,1.18215752]
[1642679178525,18.46002514,42102.0,42101.0,1.88770162]
[1642679179026,18.46002514,42102.0,42101.0,1.72570162]
[1642679179225,18.46002514,42102.0,42101.0,0.01047637]
[1642679179628,18.46002514,42102.0,42101.0,0.02347637]
[1642679180729,18.64661635,42102.0,42101.0,0.02347637]
[1642679180929,18.64661635,42102.0,42101.0,0.01047637]
[1642679181334,18.46002514,42102.0,42101.0,0.615925]
[1642679181574,18.46002514,42102.0,42101.0,0.12147637]
[1642679182074,18.46002514,42102.0,42101.0,0.72693118]
[1642679182274,18.45979101,42102.0,42101.0,0.72693118]
[1642679182877,18.45979101,42102.0,42101.0,0.71593118]
[1642679183882,18.45979101,42102.0,42101.0,0.72793118]
[1642679184077,17.73185983,42101.0,42099.0,0.70675478]
[1642679184281,17.73185983,42101.0,42100.0,0.60541624]
[1642679184479,17.73185983,42101.0,42092.0,0.80063088]
[1642679184480,17.73314764,42101.0,42099.0,0.60662692]
[1642679184880,17.73314764,42101.0,42099.0,0.70675478]
[1642679185079,17.73314764,42101.0,42100.0,0.60522872]
[1642679185343,17.73314764,42101.0,42099.0,0.7055441]
[1642679185538,17.73314764,42101.0,42100.0,0.60531886]
[1642679185738,17.73314764,42101.0,42100.0,0.61831886]
[1642679186937,17.73314764,42101.0,42100.0,0.60531886]
[1642679187339,17.73314764,42101.0,42099.0,0.7055441]
[1642679187640,17.73314764,42101.0,42100.0,0.61847784]
[1642679187838,17.73314764,42101.0,42100.0,0.013]
[1642679188241,17.73314764,42101.0,42100.0,0.004]
[1642679189672,17.73314764,42101.0,42100.0,0.016]
[1642679190172,17.73314764,42101.0,42100.0,0.61764144]
[1642679190473,17.73314764,42101.0,42100.0,0.012]
[1642679190874,17.73314764,42101.0,42100.0,0.60564144]
[1642679191273,17.02621839,42099.0,42098.0,0.7067548]
[1642679191474,17.02621839,42099.0,42098.0,1.71539347]
[1642679191677,17.02621839,42099.0,42098.0,0.70682357]
[1642679192073,17.02621839,42099.0,42098.0,1.71667294]
[1642679192673,17.02621839,42099.0,42098.0,1.71546224]
[1642679193327,0.00128781,42101.0,42096.0,0.11996773]
[1642679193328,15.31075615,42097.0,42096.0,0.11996773]
[1642679193528,15.31075615,42097.0,42096.0,0.21996773]
[1642679193732,15.31075615,42097.0,42096.0,0.218757]
[1642679194029,15.31075615,42097.0,42096.0,0.518757]
[1642679194431,15.31075615,42097.0,42096.0,0.618757]
[1642679194728,15.31075615,42097.0,42096.0,0.2]
[1642679195330,13.69505457,42097.0,42096.0,1.05]
[1642679195528,13.69505457,42097.0,42096.0,1.38985401]
[1642679195829,13.69505457,42097.0,42096.0,1.40685401]
[1642679196028,12.28820056,42096.0,42095.0,0.17814187]
[1642679197680,12.28820056,42096.0,42095.0,0.19514187]
[1642679197879,12.09305869,42095.0,42094.0,0.1]
[1642679198081,12.09305869,42095.0,42093.0,0.90184165]
[1642679198279,12.09305869,42095.0,42094.0,6.876e-05]
[1642679199384,12.09305869,42095.0,42094.0,0.05945576]
[1642679199780,11.11597205,42093.0,42092.0,0.4202535]
[1642679199981,11.11597205,42093.0,42092.0,0.42146429]
[1642679200431,11.11597205,42093.0,42092.0,0.11997697]
[1642679200826,11.11597205,42093.0,42092.0,0.00121079]
[1642679201028,11.11597205,42093.0,42091.0,0.12877234]
[1642679201328,11.11597205,42092.0,42091.0,0.47169837]
[1642679201826,11.11597205,42092.0,42091.0,0.49069837]
[1642679202528,10.50650268,42090.0,42089.0,0.12654138]
[1642679202727,8.62154908,42090.0,42089.0,1.02444138]
[1642679202927,8.62154908,42090.0,42089.0,1.02452733]
[1642679203329,8.62154908,42090.0,42089.0,1.0351865]
[1642679203730,8.62154908,42090.0,42089.0,1.0571865]
[1642679204177,8.62154908,42090.0,42089.0,1.36956825]
[1642679204378,8.62154908,42090.0,42089.0,2.77539834]
[1642679204581,8.14652908,42090.0,42089.0,2.77539834]
[1642679205179,7.35871466,42090.0,42089.0,2.77539834]
[1642679205378,5.74306143,42090.0,42089.0,2.77539834]
[1642679205577,5.26805543,42090.0,42089.0,2.77539834]
[1642679205779,5.26805543,42090.0,42089.0,2.79439834]
[1642679206181,4.79304743,42090.0,42089.0,2.79439834]
[1642679206980,4.79304743,42090.0,42089.0,1.36168107]
[1642679207183,4.79304743,42090.0,42089.0,2.77540335]
[1642679207678,4.79304743,42090.0,42089.0,1.38068107]
[1642679208322,4.79304743,42090.0,42089.0,2.39051125]
[1642679208923,4.79304743,42090.0,42089.0,2.37151125]
[1642679209321,4.79090743,42090.0,42089.0,2.37151125]
[1642679209726,4.79090743,42090.0,42089.0,2.39051125]
[1642679210926,2.90597542,42090.0,42089.0,2.37151125]
[1642679211123,1.64441571,42090.0,42089.0,4.16855126]
[1642679211573,1.16942771,42090.0,42089.0,4.18472126]
[1642679211773,0.23816039,42090.0,42089.0,4.50372126]
[1642679212173,0.00010315,42100.0,42095.0,0.059375]
[1642679212379,0.00010315,42100.0,42099.0,1.033341]
[1642679212579,0.36021884,42108.0,42099.0,2.09317118]
[1642679212772,0.36021884,42108.0,42102.0,0.60481745]
[1642679212976,0.0001891,42105.0,42102.0,0.60481745]
[1642679213172,0.0001891,42105.0,42103.0,0.98815845]
[1642679213373,0.00017191,42104.0,42103.0,0.98815845]
[1642679213776,0.00017191,42104.0,42103.0,0.99715845]
[1642679214275,0.00017191,42104.0,42103.0,0.392341]
[1642679214676,0.00017191,42104.0,42103.0,0.99715845]
[1642679215077,0.00017191,42104.0,42103.0,0.98815845]
[1642679215860,0.02917191,42104.0,42103.0,0.99815845]
[1642679216059,0.02917191,42104.0,42103.0,1.0003436]
[1642679216464,0.02917191,42104.0,42103.0,0.39552615]
[1642679217061,0.02917191,42104.0,42103.0,0.38552615]
[1642679217062,0.00017191,42104.0,42103.0,0.38552615]
[1642679217763,0.04717191,42104.0,42103.0,0.39252615]
[1642679218763,0.04717191,42104.0,42103.0,0.39246615]
[1642679219180,0.22495954,42104.0,42103.0,0.39246615]
[1642679219381,0.60079844,42104.0,42103.0,0.39246615]
[1642679219580,0.60079844,42104.0,42103.0,0.00912515]
[1642679219781,0.64779844,42104.0,42103.0,0.01412515]
[1642679220786,0.98869589,42104.0,42103.0,0.01412515]
[1642679221181,0.98869589,42104.0,42103.0,0.012]
[1642679221584,0.61285699,42104.0,42103.0,0.012]
[1642679221781,0.63585699,42104.0,42103.0,0.016]
[1642679221982,0.20095954,42104.0,42103.0,0.004]
[1642679222582,0.20095954,42104.0,42103.0,0.00376168]
[1642679223424,0.20095954,42104.0,42101.0,0.00121065]
[1642679223623,0.00017191,42104.0,42101.0,0.00121065]
[1642679223824,0.00015472,42103.0,42098.0,0.60481745]
[1642679224024,0.00015472,42103.0,42100.0,0.00121067]
[1642679224224,0.00013753,42102.0,42100.0,0.00121067]
[1642679224423,0.00013753,42102.0,42101.0,0.383341]
[1642679224625,0.41336436,42106.0,42101.0,0.383341]
[1642679224825,0.22391289,42106.0,42100.0,0.00121067]
[1642679225025,0.22391289,42106.0,42098.0,0.60481745]
[1642679225026,0.0001891,42105.0,42098.0,0.60481745]
[1642679225328,0.00017191,42104.0,42101.0,0.00121065]
[1642679225724,0.00015472,42103.0,42101.0,0.00121065]
[1642679226126,0.00013753,42102.0,42098.0,0.61581745]
[1642679226327,0.00013753,42102.0,42100.0,0.00121068]
[1642679226576,0.22391289,42106.0,42101.0,0.383341]
[1642679226775,0.22391289,42106.0,42100.0,0.00121068]
[1642679226976,0.0001891,42105.0,42100.0,0.00121068]
[1642679227381,0.00017191,42104.0,42099.0,0.60481745]
[1642679227578,0.00017191,42104.0,42100.0,0.38455167]
[1642679227780,0.00015472,42103.0,42100.0,0.39555167]
[1642679228178,0.00013753,42102.0,42100.0,0.39555167]
[1642679228578,0.00012034,42101.0,42100.0,0.394341]
[1642679228779,0.00012034,42101.0,42100.0,0.77686277]
[1642679229179,0.00012034,42101.0,42100.0,0.76586277]
[1642679229780,0.00012034,42101.0,42100.0,0.87786277]
[1642679231027,0.00012034,42101.0,42100.0,0.86586277]
[1642679231830,0.00012034,42101.0,42100.0,0.87886277]
[1642679233028,0.00012034,42101.0,42100.0,0.86586277]
[1642679233335,0.00012034,42101.0,42100.0,0.483341]
[1642679233730,0.00012034,42101.0,42100.0,0.496341]
[1642679234384,2.27551748,42107.0,42101.0,0.4]
[1642679234579,0.2989,42110.0,42101.0,0.5]
[1642679234878,8.595e-05,42106.0,42101.0,0.5]
[1642679235081,8.595e-05,42106.0,42102.0,0.383341]
[1642679235281,6.876e-05,42105.0,42102.0,0.383341]
[1642679235480,6.876e-05,42105.0,42102.0,0.483341]
[1642679235678,0.00010314,42107.0,42102.0,0.483341]
[1642679235884,0.009,42105.0,42102.0,0.492341]
[1642679237081,0.00010314,42107.0,42102.0,0.483341]
[1642679237281,0.00010314,42107.0,42102.0,0.81354471]
[1642679237924,0.00910314,42107.0,42102.0,0.82054471]
[1642679238433,0.00910314,42107.0,42102.0,0.49155164]
[1642679238925,0.46609936,42101.0,42099.0,1.07336913]
[1642679239127,0.46609936,42101.0,42100.0,0.383477]
[1642679239728,0.46609936,42101.0,42100.0,0.012]
[1642679241031,0.46609936,42101.0,42096.0,0.60481745]
[1642679241230,0.64310267,42101.0,42095.0,0.65481745]
[1642679241431,0.64310267,42101.0,42097.0,6.877e-05]
[1642679241675,0.64310267,42101.0,42096.0,8.596e-05]
[1642679241873,0.63716474,42101.0,42097.0,6.877e-05]
[1642679242076,0.63716474,42101.0,42096.0,8.596e-05]
[1642679242476,0.63716474,42101.0,42096.0,0.60490341]
[1642679242874,0.63716474,42101.0,42097.0,6.877e-05]
[1642679243274,0.63716474,42101.0,42096.0,0.00129669]
[1642679243680,0.63716474,42101.0,42097.0,6.877e-05]
[1642679244477,0.63716474,42101.0,42097.0,0.00127949]
[1642679245329,0.63716474,42101.0,42097.0,6.877e-05]
[1642679245530,0.63716474,42101.0,42097.0,0.00127949]
[1642679245728,0.63716474,42101.0,42097.0,0.00121072]
[1642679245929,0.63716474,42101.0,42097.0,0.01221072]
[1642679246528,0.63716474,42101.0,42097.0,0.011]
[1642679246729,0.63716474,42101.0,42097.0,0.01221072]
[1642679246930,0.46016143,42101.0,42097.0,0.01221072]
[1642679247133,0.46016143,42101.0,42097.0,0.00121072]
[1642679247332,0.46016143,42101.0,42098.0,0.383477]
[1642679247532,0.46016143,42101.0,42098.0,0.433477]
[1642679248034,0.46016143,42101.0,42098.0,0.495477]
[1642679249088,0.46016143,42101.0,42098.0,0.483477]
[1642679249889,0.46016143,42101.0,42098.0,0.495477]
[1642679251189,0.46016143,42101.0,42098.0,0.483477]
[1642679251792,0.46016143,42101.0,42098.0,0.495477]
[1642679253122,0.46016143,42101.0,42098.0,0.483477]